fUSD/lending_fUSD_20250202
["ID","MTS","AMOUNT","RATE_DAILY","PERIOD"]
[351308535,1738511452083,-500.0,0.00011232,2]
[351308536,1738511452093,-500.0,0.00011232,2]
[351308537,1738511452103,-500.0,0.00011232,2]
[351308538,1738511452113,-500.0,0.00011232,2]
[351308539,1738511452123,-500.0,0.00011232,2]
[351308540,1738511452132,-820.42,0.00011232,2]
[351308541,1738511452143,-569.44,0.00011232,2]
[351308542,1738511452152,-816.63,0.00011232,2]
[351308543,1738511452162,-935.02,0.00011232,2]
[351308544,1738511452173,-500.0,0.00011232,2]
[351308545,1738511452182,-500.0,0.00011232,2]
[351308546,1738511452191,-500.0,0.00011232,2]
[351308547,1738511452201,-500.0,0.00011232,2]
[351308548,1738511452210,-584.53,0.00011232,2]
[351308549,1738511452219,-885.67,0.00011232,2]
[351308550,1738511452229,-1868.5545,0.00011263,2]
[351308551,1738511452238,-2103.5524321,0.00011321,2]
[351308552,1738511452248,-573.22,0.00011361,2]
[351308553,1738511452258,-500.0,0.00011362,2]
[351308554,1738511452267,-500.0,0.00011362,2]
[351308555,1738511452277,-816.37,0.00011362,2]
[351308556,1738511452287,-1661.17,0.00011362,2]
[351308557,1738511452297,-1332.82,0.00011362,2]
[351308558,1738511452306,-1964.01,0.00011362,2]
[351308559,1738511452315,-2603.59,0.00011362,2]
[351308560,1738511452324,-500.0,0.00011362,2]
[351308561,1738511452334,-2889.94,0.00011362,2]
[351308562,1738511452343,-4743.23,0.00011362,2]
[351308563,1738511452353,-10523.62,0.00011362,2]
[351308564,1738511452362,-1554.63,0.00011362,2]
[351308565,1738511452372,-1284.59,0.00011362,2]
[351308566,1738511452381,-1679.21,0.00011362,2]
[351308567,1738511452391,-2652.81,0.00011362,2]
[351308568,1738511452401,-654.17,0.00011362,2]
[351308569,1738511452410,-1718.82,0.00011362,2]
[351308570,1738511452420,-1974.37,0.00011362,2]
[351308571,1738511452429,-2000.83,0.00011362,2]
[351308572,1738511452439,-836.56,0.00011362,2]
[351308573,1738511452448,-1343.39,0.00011362,2]
[351308574,1738511452457,-1186.75,0.00011362,2]
[351308575,1738511452467,-500.0,0.00011363,2]
[351308576,1738511452477,-516.96974861,0.00011363,2]
[351308577,1738511452497,-500.0,0.00011363,2]
[351308578,1738511452506,-557.31148772,0.00011363,2]
[351308579,1738511452516,-500.0,0.00011363,2]
[351308580,1738511452525,-500.0,0.00011363,2]
[351308581,1738511452535,-500.0,0.00011363,2]
[351308582,1738511452544,-619.85145268,0.00011363,2]
[351308583,1738511452554,-500.0,0.00011363,2]
[351308584,1738511452563,-500.0,0.00011363,2]
[351308585,1738511452573,-596.58,0.00011363,2]
[351308586,1738511452582,-500.0,0.00011363,2]
[351308587,1738511452591,-500.0,0.00011363,2]
[351308588,1738511452600,-500.0,0.00011363,2]
[351308589,1738511452610,-500.0,0.00011363,2]
[351308590,1738511452619,-510.49430421,0.00011363,2]
[351308591,1738511452629,-365.1,0.00011363,2]
[351308592,1738511452638,-500.0,0.00011363,2]
[351308593,1738511452649,-500.0,0.00011364,2]
[351308594,1738511452658,-551.33445327,0.00011364,2]
[351308595,1738511452667,-500.0,0.00011364,2]
[351308596,1738511452677,-500.0,0.00011364,2]
[351308597,1738511452686,-301.85151837,0.00011364,2]
[351308598,1738511452695,-502.14893857,0.00011364,2]
[351308599,1738511452704,-500.0,0.00011364,2]
[351308600,1738511452713,-500.0,0.00011364,2]
[351308601,1738511452723,-500.0,0.00011364,2]
[351308602,1738511452732,-500.0,0.00011364,2]
[351308603,1738511452741,-302.1960042,0.00011364,2]
[351308604,1738511452751,-395.01978406,0.00011364,2]
[351308605,1738511452760,-501.22637599,0.00011364,2]
[351308606,1738511452769,-500.0,0.00011364,2]
[351308607,1738511452779,-500.0,0.00011364,2]
[351308608,1738511452788,-528.87338929,0.00011364,2]
[351308609,1738511452798,-500.0,0.00011364,2]
[351308610,1738511452807,-1187.42,0.00011364,2]
[351308611,1738511452817,-817.82,0.00011364,2]
[351308612,1738511452826,-607.41,0.00011364,2]
[351308613,1738511452836,-500.0,0.00011364,2]
[351308614,1738511452845,-1230.03,0.00011364,2]
[351308615,1738511452854,-615.34,0.00011364,2]
[351308616,1738511452864,-714.07,0.00011364,2]
[351308617,1738511452873,-1449.17,0.00011364,2]
[351308618,1738511452884,-500.0,0.00011364,2]
[351308619,1738511452894,-1251.19,0.00011364,2]
[351308620,1738511452904,-1405.84,0.00011364,2]
[351308621,1738511452913,-1494.61,0.00011364,2]
[351308622,1738511452923,-828.44,0.00011364,2]
[351308623,1738511452932,-500.0,0.00011364,2]
[351308624,1738511452942,-676.04,0.00011364,2]
[351308625,1738511452952,-535.23,0.00011364,2]
[351308626,1738511452963,-1723.36,0.00011364,2]
[351308627,1738511452972,-854.84,0.00011364,2]
[351308628,1738511452982,-1459.08,0.00011364,2]
[351308629,1738511452991,-500.0,0.00011364,2]
[351308630,1738511453000,-1678.19,0.00011364,2]
[351308631,1738511453010,-571.62,0.00011364,2]
[351308632,1738511453020,-500.0,0.00011364,2]
[351308633,1738511453029,-780.5,0.00011364,2]
[351308634,1738511453039,-500.0,0.00011364,2]
[351308635,1738511453048,-1296.82,0.00011364,2]
[351308636,1738511453058,-1446.98,0.00011364,2]
[351308637,1738511453067,-500.0,0.00011364,2]
[351308638,1738511453077,-618.81,0.00011364,2]
[351308639,1738511453086,-730.18,0.00011364,2]
[351308640,1738511453095,-609.86,0.00011364,2]
[351308641,1738511453105,-500.0,0.00011364,2]
[351308642,1738511453114,-1335.96,0.00011368,2]
[351308643,1738511453124,-978.46,0.00011368,2]
[351308644,1738511453133,-500.0,0.00011368,2]
[351308645,1738511453145,-518.13,0.00011368,2]
[351308646,1738511453154,-500.0,0.00011368,2]
[351308647,1738511453164,-500.0,0.00011368,2]
[351308648,1738511453173,-500.0,0.00011368,2]
[351308649,1738511453182,-500.0,0.00011368,2]
[351308650,1738511453192,-500.0,0.00011368,2]
[351308651,1738511453202,-1147.35,0.00011368,2]
[351308652,1738511453211,-500.0,0.00011368,2]
[351308653,1738511453220,-500.0,0.00011368,2]
[351308654,1738511453229,-668.46,0.00011368,2]
[351308655,1738511453239,-418.55,0.00011368,2]
[351308656,1738511453249,-1211.37,0.00011368,2]
[351308657,1738511453263,-500.0,0.00011368,2]
[351308658,1738511453273,-594.76,0.00011368,2]
[351308659,1738511453282,-1093.43,0.00011368,2]
[351308660,1738511453292,-500.0,0.00011368,2]
[351308661,1738511453301,-500.0,0.00011368,2]
[351308662,1738511453311,-500.0,0.00011368,2]
[351308663,1738511453320,-500.0,0.00011368,2]
[351308664,1738511453329,-500.0,0.00011368,2]
[351308665,1738511453575,-500.0,0.00011368,2]
[351308666,1738511453585,-500.0,0.00011368,2]
[351308667,1738511453594,-500.0,0.00011368,2]
[351308668,1738511453603,-829.51,0.00011368,2]
[351308669,1738511453612,-500.0,0.00011368,2]
[351308670,1738511453622,-500.0,0.00011368,2]
[351308671,1738511453631,-500.0,0.00011368,2]
[351308672,1738511453642,-500.0,0.00011368,2]
[351308673,1738511453652,-1097.71,0.00011368,2]
[351308674,1738511453661,-1068.84,0.00011368,2]
[351308675,1738511453670,-500.0,0.00011368,2]
[351308676,1738511453680,-500.0,0.00011368,2]
[351308677,1738511453690,-500.0,0.00011368,2]
[351308678,1738511453699,-500.0,0.00011368,2]
[351308679,1738511453708,-500.0,0.00011368,2]
[351308680,1738511453717,-500.0,0.00011368,2]
[351308681,1738511453727,-500.0,0.00011368,2]
[351308682,1738511453736,-500.0,0.00011368,2]
[351308683,1738511453746,-500.0,0.00011368,2]
[351308684,1738511453755,-500.0,0.00011368,2]
[351308685,1738511453765,-561.08,0.00011368,2]
[351308686,1738511453775,-500.0,0.00011368,2]
[351308687,1738511453784,-500.0,0.00011368,2]
[351308688,1738511453793,-500.0,0.00011368,2]
[351308689,1738511453803,-515.69,0.00011368,2]
[351308690,1738511453812,-653.67,0.00011368,2]
[351308691,1738511453821,-500.0,0.00011368,2]
[351308692,1738511453832,-1093.31,0.00011368,2]
[351308693,1738511453841,-1053.18,0.00011368,2]
[351308694,1738511453851,-500.0,0.00011368,2]
[351308695,1738511453862,-500.0,0.00011368,2]
[351308696,1738511453872,-1273.51,0.00011368,2]
[351308697,1738511453882,-522.28,0.00011368,2]
[351308698,1738511453893,-1239.31,0.00011368,2]
[351308699,1738511453902,-740.34,0.00011368,2]
[351308700,1738511453912,-500.0,0.00011368,2]
[351308701,1738511453922,-500.0,0.00011368,2]
[351308702,1738511453932,-644.61,0.00011368,2]
[351308703,1738511453954,-913.35,0.00011368,2]
[351308704,1738511453967,-500.0,0.00011368,2]
[351308705,1738511453976,-1062.0,0.00011368,2]
[351308706,1738511453987,-1115.18,0.00011368,2]
[351308707,1738511453996,-945.68,0.00011368,2]
[351308708,1738511454006,-607.69,0.00011368,2]
[351308709,1738511454016,-500.0,0.00011368,2]
[351308710,1738511454026,-522.96,0.00011368,2]
[351308711,1738511454037,-500.0,0.00011368,2]
[351308712,1738511454047,-1647.72,0.00011368,2]
[351308713,1738511454057,-1035.26,0.00011368,2]
[351308714,1738511454066,-500.0,0.00011368,2]
[351308715,1738511454076,-2196.81,0.00011368,2]
[351308716,1738511454086,-500.0,0.00011368,2]
[351308717,1738511454096,-1325.26,0.00011368,2]
[351308718,1738511454106,-573.22,0.00011368,2]
[351308719,1738511454116,-975.31,0.00011368,2]
[351308720,1738511454126,-1985.37,0.00011368,2]
[351308721,1738511454135,-500.0,0.00011368,2]
[351308722,1738511454148,-500.0,0.00011368,2]
[351308723,1738511454158,-918.08,0.00011368,2]
[351308724,1738511454168,-2083.26,0.00011368,2]
[351308725,1738511454178,-1965.57,0.00011368,2]
[351308726,1738511454188,-1323.45,0.00011368,2]
[351308727,1738511454198,-1635.63,0.00011368,2]
[351308728,1738511454208,-500.0,0.00011368,2]
[351308729,1738511454218,-774.16,0.00011368,2]
[351308730,1738511454227,-5662.33,0.00011368,2]
[351308731,1738511454237,-7030.17,0.00011368,2]
[351308732,1738511454247,-782.48,0.00011368,2]
[351308733,1738511454256,-2514.52,0.00011368,2]
[351308734,1738511454265,-681.48,0.00011368,2]
[351308735,1738511454275,-790.42,0.00011368,2]
[351308736,1738511454285,-3657.25,0.00011368,2]
[351308737,1738511454294,-3049.12,0.00011368,2]
[351308738,1738511454304,-500.0,0.00011368,2]
[351308739,1738511454313,-500.0,0.00011368,2]
[351308740,1738511454323,-1745.16,0.00011368,2]
[351308741,1738511454333,-1031.35,0.00011368,2]
[351308742,1738511454342,-1816.81,0.00011368,2]
[351308743,1738511454352,-500.0,0.00011368,2]
[351308744,1738511454361,-528.0,0.00011368,2]
[351308745,1738511454371,-602.22,0.00011368,2]
[351308746,1738511454380,-4052.48,0.00011368,2]
[351308747,1738511454390,-500.0,0.00011368,2]
[351308748,1738511454402,-1474.86,0.00011368,2]
[351308749,1738511454412,-4337.5,0.00011368,2]
[351308750,1738511454422,-1297.61,0.00011368,2]
[351308751,1738511454432,-1453.24,0.00011368,2]
[351308752,1738511454442,-1696.27,0.00011368,2]
[351308753,1738511454451,-1292.86,0.00011368,2]
[351308754,1738511454460,-734.3,0.00011368,2]
[351308755,1738511454469,-1155.8,0.00011368,2]
[351308756,1738511454480,-1512.01,0.00011368,2]
[351308757,1738511454492,-1336.03,0.00011368,2]
[351308758,1738511454502,-500.0,0.00011368,2]
[351308759,1738511454514,-686.62,0.00011368,2]
[351308760,1738511454527,-1393.61,0.00011368,2]
[351308761,1738511454537,-500.0,0.00011368,2]
[351308762,1738511454546,-522.01525402,0.00011368,2]
[351308763,1738511454556,-1657.23,0.00011368,2]
[351308764,1738511454570,-1120.37,0.00011368,2]
[351308765,1738511454580,-500.0,0.00011369,2]
[351308766,1738511454589,-500.0,0.00011369,2]
[351308767,1738511454599,-500.0,0.00011369,2]
[351308768,1738511454608,-500.0,0.00011369,2]
[351308769,1738511454618,-500.0,0.00011369,2]
[351308770,1738511454627,-500.0,0.00011369,2]
[351308771,1738511454637,-500.0,0.00011369,2]
[351308772,1738511454649,-500.0,0.00011369,2]
[351308773,1738511454658,-500.0,0.00011369,2]
[351308774,1738511454668,-500.0,0.00011369,2]
[351308775,1738511454677,-500.0,0.00011369,2]
[351308776,1738511454687,-500.0,0.00011369,2]
[351308777,1738511454697,-663.36,0.00011369,2]
[351308778,1738511454706,-500.0,0.00011369,2]
[351308779,1738511454715,-500.0,0.00011369,2]
[351308780,1738511454725,-412.07900561,0.00011369,2]
[351308781,1738511454735,-500.0,0.00011369,2]
[351308782,1738511454744,-500.0,0.00011369,2]
[351308783,1738511454753,-500.0,0.00011369,2]
[351308784,1738511454763,-500.0,0.00011369,2]
[351308785,1738511454773,-500.0,0.00011369,2]
[351308786,1738511454783,-500.0,0.00011369,2]
[351308787,1738511454793,-500.0,0.00011369,2]
[351308788,1738511454802,-500.0,0.00011369,2]
[351308789,1738511454811,-500.0,0.00011369,2]
[351308790,1738511454821,-500.0,0.00011369,2]
[351308791,1738511454831,-500.0,0.00011369,2]
[351308792,1738511454841,-500.0,0.00011369,2]
[351308793,1738511454850,-698.15,0.00011369,2]
[351308794,1738511454859,-500.0,0.00011369,2]
[351308795,1738511454869,-500.0,0.00011369,2]
[351308796,1738511454879,-500.0,0.00011369,2]
[351308797,1738511454888,-500.0,0.00011369,2]
[351308798,1738511454901,-500.0,0.00011369,2]
[351308799,1738511454910,-500.0,0.00011369,2]
[351308800,1738511454920,-500.0,0.00011369,2]
[351308801,1738511454929,-500.0,0.00011369,2]
[351308802,1738511454939,-500.0,0.00011369,2]
[351308803,1738511454949,-500.0,0.00011369,2]
[351308804,1738511454958,-500.0,0.00011369,2]
[351308805,1738511454968,-500.0,0.00011369,2]
[351308806,1738511454978,-500.0,0.00011369,2]
[351308807,1738511454987,-500.0,0.00011369,2]
[351308808,1738511454997,-500.0,0.00011369,2]
[351308809,1738511455006,-500.0,0.00011369,2]
[351308810,1738511455016,-500.0,0.00011369,2]
[351308811,1738511455026,-500.0,0.00011369,2]
[351308812,1738511455036,-500.0,0.00011369,2]
[351308813,1738511455046,-500.0,0.00011369,2]
[351308814,1738511455055,-500.0,0.00011369,2]
[351308815,1738511455066,-705.16,0.00011369,2]
[351308816,1738511455075,-531.92,0.00011369,2]
[351308817,1738511455086,-500.0,0.00011369,2]
[351308818,1738511455095,-500.0,0.00011369,2]
[351308819,1738511455105,-500.0,0.00011369,2]
[351308820,1738511455115,-500.0,0.00011369,2]
[351308821,1738511455125,-500.0,0.00011369,2]
[351308822,1738511455134,-500.0,0.00011369,2]
[351308823,1738511455146,-351.95768381,0.00011369,2]
[351308824,1738511455156,-500.0,0.00011369,2]
[351308825,1738511455165,-584.24294836,0.00011369,2]
[351308826,1738511455174,-500.0,0.00011369,2]
[351308827,1738511455184,-500.0,0.00011369,2]
[351308828,1738511455193,-500.0,0.00011369,2]
[351308829,1738511455203,-500.0,0.00011369,2]
[351308830,1738511455212,-500.0,0.00011369,2]
[351308831,1738511455222,-500.0,0.00011369,2]
[351308832,1738511455232,-500.0,0.00011369,2]
[351308833,1738511455241,-500.0,0.00011369,2]
[351308834,1738511455251,-500.0,0.00011369,2]
[351308835,1738511455260,-500.0,0.00011369,2]
[351308836,1738511455269,-500.0,0.00011369,2]
[351308837,1738511455279,-390.7865734,0.00011369,2]
[351308838,1738511455288,-719.85,0.00011369,2]
[351308839,1738511455298,-500.0,0.00011369,2]
[351308840,1738511455307,-594.38,0.00011369,2]
[351308841,1738511455316,-500.0,0.00011369,2]
[351308842,1738511455326,-563.78,0.00011369,2]
[351308843,1738511455335,-500.0,0.00011369,2]
[351308844,1738511455344,-500.0,0.00011369,2]
[351308845,1738511455354,-500.0,0.00011369,2]
[351308846,1738511455363,-500.0,0.00011369,2]
[351308847,1738511455372,-752.42,0.00011369,2]
[351308848,1738511455381,-500.0,0.00011369,2]
[351308849,1738511455390,-500.0,0.00011369,2]
[351308850,1738511455403,-500.0,0.00011369,2]
[351308851,1738511455412,-500.0,0.00011369,2]
[351308852,1738511455422,-500.0,0.00011369,2]
[351308853,1738511455431,-500.0,0.00011369,2]
[351308854,1738511455440,-500.0,0.00011369,2]
[351308855,1738511455450,-581.91379659,0.00011369,2]
[351308856,1738511455459,-743.8,0.00011369,2]
[351308857,1738511455468,-500.0,0.00011369,2]
[351308858,1738511455478,-500.0,0.00011369,2]
[351308859,1738511455492,-500.0,0.00011369,2]
[351308860,1738511455502,-500.0,0.00011369,2]
[351308861,1738511455512,-500.0,0.00011369,2]
[351308862,1738511455523,-500.0,0.00011369,2]
[351308863,1738511455532,-500.0,0.00011369,2]
[351308864,1738511455542,-500.0,0.00011369,2]
[351308865,1738511455551,-500.0,0.00011369,2]
[351308866,1738511455564,-500.0,0.00011369,2]
[351308867,1738511455573,-500.0,0.00011369,2]
[351308868,1738511455582,-500.0,0.00011369,2]
[351308869,1738511455591,-725.47,0.00011369,2]
[351308870,1738511455601,-764.06,0.00011369,2]
[351308871,1738511455611,-500.0,0.00011369,2]
[351308872,1738511455620,-500.0,0.00011369,2]
[351308873,1738511455630,-500.0,0.00011369,2]
[351308874,1738511455641,-500.0,0.00011369,2]
[351308875,1738511455652,-500.0,0.00011369,2]
[351308876,1738511455661,-500.0,0.00011369,2]
[351308877,1738511455670,-500.0,0.00011369,2]
[351308878,1738511455680,-500.0,0.00011369,2]
[351308879,1738511455690,-500.0,0.00011369,2]
[351308880,1738511455699,-698.18,0.00011369,2]
[351308881,1738511455708,-791.74,0.00011369,2]
[351308882,1738511455718,-500.0,0.00011369,2]
[351308883,1738511455728,-500.0,0.00011369,2]
[351308884,1738511455737,-807.25,0.00011369,2]
[351308885,1738511455746,-547.53,0.00011369,2]
[351308886,1738511455760,-500.0,0.00011369,2]
[351308887,1738511455772,-500.0,0.00011369,2]
[351308888,1738511455782,-500.0,0.00011369,2]
[351308889,1738511455792,-500.0,0.00011369,2]
[351308890,1738511455802,-500.0,0.00011369,2]
[351308891,1738511455811,-500.0,0.00011369,2]
[351308892,1738511455822,-500.0,0.00011369,2]
[351308893,1738511455831,-837.73,0.00011369,2]
[351308894,1738511455841,-584.45391384,0.00011369,2]
[351308895,1738511455850,-500.0,0.00011369,2]
[351308896,1738511455860,-500.0,0.00011369,2]
[351308897,1738511455869,-621.45,0.00011369,2]
[351308898,1738511455878,-500.0,0.00011369,2]
[351308899,1738511455888,-500.0,0.00011369,2]
[351308900,1738511455899,-631.63,0.00011369,2]
[351308901,1738511455908,-500.0,0.00011369,2]
[351308902,1738511455918,-799.17,0.00011369,2]
[351308903,1738511455928,-500.0,0.00011369,2]
[351308904,1738511455937,-771.95,0.00011369,2]
[351308905,1738511455951,-500.0,0.00011369,2]
[351308906,1738511455960,-620.52,0.00011369,2]
[351308907,1738511455970,-500.0,0.00011369,2]
[351308908,1738511455980,-500.0,0.00011369,2]
[351308909,1738511455989,-500.0,0.00011369,2]
[351308910,1738511455999,-500.0,0.00011369,2]
[351308911,1738511456009,-515.64439918,0.00011369,2]
[351308912,1738511456018,-500.0,0.00011369,2]
[351308913,1738511456028,-618.87,0.00011369,2]
[351308914,1738511456037,-500.0,0.00011369,2]
[351308915,1738511456047,-616.27,0.00011369,2]
[351308916,1738511456056,-500.0,0.00011369,2]
[351308917,1738511456066,-500.0,0.00011369,2]
[351308918,1738511456075,-500.0,0.00011369,2]
[351308919,1738511456085,-500.0,0.00011369,2]
[351308920,1738511456095,-500.0,0.00011369,2]
[351308921,1738511456104,-500.0,0.00011369,2]
[351308922,1738511456114,-565.37,0.00011369,2]
[351308923,1738511456123,-500.0,0.00011369,2]
[351308924,1738511456133,-500.0,0.00011369,2]
[351308925,1738511456142,-500.0,0.00011369,2]
[351308926,1738511456152,-500.0,0.00011369,2]
[351308927,1738511456161,-500.0,0.00011369,2]
[351308928,1738511456171,-500.0,0.00011369,2]
[351308929,1738511456180,-500.0,0.00011369,2]
[351308930,1738511456189,-500.0,0.00011369,2]
[351308931,1738511456198,-500.0,0.00011369,2]
[351308932,1738511456207,-500.0,0.00011369,2]
[351308933,1738511456216,-500.0,0.00011369,2]
[351308934,1738511456226,-500.0,0.00011369,2]
[351308935,1738511456235,-500.0,0.00011369,2]
[351308936,1738511456245,-780.81,0.00011369,2]
[351308937,1738511456254,-500.0,0.00011369,2]
[351308938,1738511456264,-500.0,0.00011369,2]
[351308939,1738511456274,-500.0,0.00011369,2]
[351308940,1738511456283,-584.3,0.00011369,2]
[351308941,1738511456292,-500.0,0.00011369,2]
[351308942,1738511456302,-500.0,0.00011369,2]
[351308943,1738511456311,-534.64,0.00011369,2]
[351308944,1738511456321,-500.0,0.00011369,2]
[351308945,1738511456330,-500.0,0.00011369,2]
[351308946,1738511456340,-500.0,0.00011369,2]
[351308947,1738511456350,-500.0,0.00011369,2]
[351308948,1738511456359,-2943.55,0.00011369,2]
[351308949,1738511456368,-500.0,0.00011369,2]
[351308950,1738511456378,-2686.29,0.00011369,2]
[351308951,1738511456387,-500.0,0.00011369,2]
[351308952,1738511456397,-500.0,0.00011369,2]
[351308953,1738511456407,-500.0,0.00011369,2]
[351308954,1738511456417,-500.0,0.00011369,2]
[351308955,1738511456426,-500.0,0.00011369,2]
[351308956,1738511456436,-500.0,0.00011369,2]
[351308957,1738511456445,-808.37,0.00011369,2]
[351308958,1738511456455,-500.0,0.00011369,2]
[351308959,1738511456465,-794.83,0.00011369,2]
[351308960,1738511456475,-2679.98,0.00011369,2]
[351308961,1738511456488,-500.0,0.00011369,2]
[351308962,1738511456498,-500.0,0.00011369,2]
[351308963,1738511456507,-2338.08,0.00011369,2]
[351308964,1738511456699,-500.0,0.00011369,2]
[351308965,1738511456710,-1073.23,0.00011369,2]
[351308966,1738511456720,-500.0,0.00011369,2]
[351308967,1738511456730,-500.0,0.00011369,2]
[351308968,1738511456740,-500.0,0.00011369,2]
[351308969,1738511456749,-500.0,0.00011369,2]
[351308970,1738511456759,-500.0,0.00011369,2]
[351308971,1738511456768,-500.0,0.00011369,2]
[351308972,1738511456778,-1816.82,0.00011369,2]
[351308973,1738511456788,-1683.79,0.00011369,2]
[351308974,1738511456797,-500.0,0.00011369,2]
[351308975,1738511456807,-500.0,0.00011369,2]
[351308976,1738511456817,-500.0,0.00011369,2]
[351308977,1738511456826,-500.0,0.00011369,2]
[351308978,1738511456836,-217.98353013,0.00011369,2]
[351308979,1738511456846,-4162.42,0.00011369,2]
[351308980,1738511456855,-500.0,0.00011369,2]
[351308981,1738511456865,-500.0,0.00011369,2]
[351308982,1738511456875,-3144.7,0.00011369,2]
[351308983,1738511456885,-500.0,0.00011369,2]
[351308984,1738511456897,-500.0,0.00011369,2]
[351308985,1738511456906,-500.0,0.00011369,2]
[351308986,1738511456915,-500.0,0.00011369,2]
[351308987,1738511456924,-500.0,0.00011369,2]
[351308988,1738511456934,-500.0,0.00011369,2]
[351308989,1738511456944,-216.44,0.00011369,2]
[351308990,1738511456954,-500.0,0.00011369,2]
[351308991,1738511456963,-500.0,0.00011369,2]
[351308992,1738511456973,-500.0,0.00011369,2]
[351308993,1738511456983,-500.0,0.00011369,2]
[351308994,1738511456993,-500.0,0.00011369,2]
[351308995,1738511457003,-305.292181,0.00011369,2]
[351308996,1738511457013,-575.75,0.00011369,2]
[351308997,1738511457022,-689.19,0.00011369,2]
[351308998,1738511457032,-1191.99,0.00011369,2]
[351308999,1738511457041,-500.0,0.00011369,2]
[351309000,1738511457051,-500.0,0.00011369,2]
[351309001,1738511457061,-500.0,0.00011369,2]
[351309002,1738511457072,-192.44256496,0.00011369,2]
[351309003,1738511457082,-851.33,0.00011369,2]
[351309004,1738511457092,-500.0,0.00011369,2]
[351309005,1738511457102,-500.0,0.00011369,2]
[351309006,1738511457114,-500.0,0.00011369,2]
[351309007,1738511457124,-677.75,0.00011369,2]
[351309008,1738511457134,-500.0,0.00011369,2]
[351309009,1738511457144,-500.0,0.00011369,2]
[351309010,1738511457153,-500.0,0.00011369,2]
[351309011,1738511457163,-500.0,0.00011369,2]
[351309012,1738511457172,-500.0,0.00011369,2]
[351309013,1738511457182,-500.0,0.00011369,2]
[351309014,1738511457192,-1595.43,0.00011369,2]
[351309015,1738511457202,-500.0,0.00011369,2]
[351309016,1738511457212,-500.0,0.00011369,2]
[351309017,1738511457222,-2506.07,0.00011369,2]
[351309018,1738511457232,-500.0,0.00011369,2]
[351309019,1738511457241,-842.15,0.00011369,2]
[351309020,1738511457250,-539.77,0.00011369,2]
[351309021,1738511457259,-500.0,0.00011369,2]
[351309022,1738511457268,-500.0,0.00011369,2]
[351309023,1738511457278,-3571.76,0.00011369,2]
[351309024,1738511457287,-500.0,0.00011369,2]
[351309025,1738511457297,-754.64,0.00011369,2]
[351309026,1738511457307,-500.0,0.00011369,2]
[351309027,1738511457317,-779.97,0.00011369,2]
[351309028,1738511457327,-319.816449,0.00011369,2]
[351309029,1738511457337,-3366.95,0.00011369,2]
[351309030,1738511457347,-500.0,0.00011369,2]
[351309031,1738511457357,-500.0,0.00011369,2]
[351309032,1738511457367,-1388.96,0.00011369,2]
[351309033,1738511457377,-1447.22,0.00011369,2]
[351309034,1738511457387,-500.0,0.00011369,2]